bitfinex-derivatives/quotes_SOLF0:USTF0_20250923
["timestamp","ask_amount","ask_price","bid_price","bid_amount"]
[1758596873689,3.18623741,212.91,212.82,133.34]
[1758596873888,3.18623741,212.9,212.82,133.34]
[1758596874090,11.56667248,212.95,212.82,133.34]
[1758596874383,6.78593772,212.94,212.82,133.34]
[1758596874585,3.18626477,212.93,212.82,133.34]
[1758596874788,3.18626477,212.92,212.82,133.34]
[1758596874990,11.56667248,212.95,212.82,133.34]
[1758596875190,3.18635182,212.94,212.83,65.7199]
[1758596875392,7.86,212.95,212.82,133.34]
[1758596875589,3.1867488,212.94,212.82,133.34]
[1758596875794,7.86,212.95,212.86,4.2242]
[1758596876095,3.20850628,212.94,212.82,133.34]
[1758596876286,4.2227,212.94,212.82,133.34]
[1758596877398,3.20874761,212.93,212.82,133.34]
[1758596877692,3.20854467,212.92,212.81,133.34]
[1758596877896,3.20854467,212.91,212.81,133.34]
[1758596878096,7.86,212.93,212.81,133.34]
[1758596878289,3.20867508,212.92,212.81,133.34]
[1758596878487,7.86,212.93,212.81,133.34]
[1758596878894,7.86,212.93,212.84,4.2246]
[1758596879096,7.86,212.98,212.83,65.7203]
[1758596879295,6.80942469,212.97,212.83,65.7203]
[1758596879599,4.2225,212.95,212.86,4.2241]
[1758596880294,7.86,212.98,212.86,4.2241]
[1758596880496,3.20889718,212.97,212.87,65.7074]
[1758596880691,7.5,213.07,212.92,65.6924]
[1758596880993,3.2097323,213.05,212.92,199.0124]
[1758596881198,4.221,213.03,212.92,133.32]
[1758596881401,7.5,213.07,212.94,65.6859]
[1758596881788,7.5,213.07,212.92,133.32]
[1758596881993,3.20777265,213.05,212.92,133.32]
[1758596882194,73.1469,213.07,212.92,133.32]
[1758596882395,7.5,213.03,212.92,133.32]
[1758596882600,3.20520549,213.02,212.92,133.32]
[1758596882797,65.6747,212.98,212.88,133.3]
[1758596882999,10.70468169,212.97,212.85,488.42]
[1758596883200,3.20468169,212.96,212.85,488.42]
[1758596883509,7.5,212.94,212.78,65.7345]
[1758596883714,3.20404448,212.93,212.8,65.7293]
[1758596884008,7.5,213.0,212.84,65.7168]
[1758596884309,4.2221,212.97,212.86,4.2241]
[1758596884508,3.20441271,212.96,212.86,137.5041]
[1758596885206,7.5,213.0,212.89,65.7001]
[1758596885399,7.5,213.05,212.89,65.7001]
[1758596885606,3.20501975,213.04,212.89,65.7001]
[1758596885808,3.20501975,213.03,212.89,65.7001]
[1758596886007,3.20501975,213.02,212.89,65.7001]
[1758596886209,7.5,213.05,212.89,65.7001]
[1758596886415,3.20421282,213.04,212.89,65.7001]
[1758596886716,69.37247248,213.01,212.89,133.28]
[1758596886907,3.20421282,213.0,212.89,133.28]
[1758596887210,7.5,213.02,212.92,4.223]
[1758596887414,3.20369512,213.01,212.92,4.223]
[1758596887617,7.5,213.02,212.92,4.223]
[1758596887821,3.20377421,213.01,212.92,4.223]
[1758596888109,11.7211,213.02,212.89,137.5035]
[1758596888312,3.2032461,213.01,212.89,137.5035]
[1758596888515,11.7211,213.02,212.91,4.2232]
[1758596888713,4.2217,212.99,212.89,133.28]
[1758596888909,3.20369595,212.98,212.89,133.28]
[1758596889212,3.20440445,212.97,212.89,133.28]
[1758596889407,76.38550445,212.96,212.79,69.43627248]
[1758596889714,7.5,212.88,212.76,133.24]
[1758596890114,0.64249193,212.97,212.83,65.7203]
[1758596890304,7.5,212.99,212.84,198.9568]
[1758596890503,3.20413775,212.98,212.84,198.9568]
[1758596890813,3.20413775,212.97,212.84,198.9568]
[1758596891011,7.5,212.99,212.84,198.9568]
[1758596891210,3.20415275,212.98,212.84,198.9568]
[1758596891520,3.20415275,212.97,212.84,198.9568]
[1758596891717,7.5,212.99,212.87,4.224]
[1758596891918,3.20353897,212.98,212.87,4.224]
[1758596892112,7.5,212.99,212.87,4.224]
[1758596892313,7.5,212.99,212.84,198.9568]
[1758596892607,3.20394454,212.98,212.84,133.24]
[1758596892813,4.2219,212.98,212.87,4.224]
[1758596894013,7.5,212.96,212.86,133.22]
[1758596894313,3.20408987,212.95,212.86,133.22]
[1758596894521,65.6833,212.95,212.81,4.2251]
[1758596894722,76.38839515,212.94,212.81,133.22]
[1758596895012,3.20139515,212.93,212.81,133.22]
[1758596895608,4.2236,212.9,212.81,133.22]
[1758596895811,11.7236,212.9,212.81,133.22]
[1758596896521,11.7236,212.9,212.7,65.7595]
[1758596896522,65.7056,212.88,212.7,65.7595]
[1758596896718,7.76,212.87,212.74,133.22]
[1758596897823,7.76,212.87,212.76,4.2261]
[1758596899319,7.76,212.87,212.74,133.22]
[1758596899723,7.76,212.87,212.75,133.22]
[1758596899921,3.19983319,212.86,212.75,133.22]
[1758596900124,4.2247,212.84,212.75,133.22]
[1758596900518,4.2245,212.85,212.75,133.22]
[1758596902827,65.6998,212.9,212.6,116.47549794]
[1758596902828,7.76,212.79,212.6,65.7888]
[1758596903023,7.76,212.79,212.63,133.22]
[1758596903224,7.76,212.79,212.64,65.7788]
[1758596903426,7.76,212.79,212.63,133.22]
[1758596903427,7.76,212.77,212.62,65.7852]
[1758596903730,7.76,212.77,212.64,65.779]
[1758596905026,7.76,212.77,212.67,4.228]
[1758596906234,7.76,212.83,212.69,65.7625]
[1758596906435,7.76,212.83,212.7,133.22]
[1758596907036,11.9849,212.83,212.71,4.2271]
[1758596909531,7.76,212.78,212.65,137.4084]
[1758596909730,7.76,212.78,212.66,133.2]
[1758596910439,4.2261,212.77,212.66,133.2]
[1758596910629,65.7356,212.79,212.66,133.2]
[1758596910926,10.34942189,212.78,212.66,133.2]
[1758596911132,65.7356,212.79,212.62,4.2289]
[1758596911133,7.16,212.74,212.62,4.2289]
[1758596911328,7.16,212.74,212.63,133.18]
[1758596911641,13.06578227,212.79,212.63,198.9612]
[1758596911832,4.2261,212.77,212.63,198.9612]
[1758596912740,13.06578227,212.79,212.66,65.7728]
[1758596912741,7.16,212.79,212.66,65.7728]
[1758596913338,4.2259,212.78,212.63,198.9612]
[1758596913831,4.2259,212.78,212.65,4.2284]
[1758596914032,4.2259,212.78,212.63,198.9612]
[1758596914432,4.2259,212.78,212.67,4.228]
[1758596915137,0.37,212.77,212.67,4.228]
[1758596915727,72.902,212.76,212.63,133.18]
[1758596915933,7.16,212.75,212.63,133.18]
[1758596916739,4.2271,212.72,212.63,133.18]
[1758596917634,11.3866,212.75,212.63,133.18]
[1758596917829,7.16,212.75,212.63,133.18]
[1758596918939,11.3865,212.75,212.63,133.18]
[1758596919441,7.16,212.75,212.63,133.18]
[1758596921933,7.16,212.75,212.63,137.4088]
[1758596922143,7.16,212.75,212.63,133.18]
[1758596922637,11.3866,212.75,212.63,133.18]
[1758596922833,7.16,212.75,212.63,133.18]
[1758596923033,7.16,212.71,212.63,133.1]
[1758596923237,65.7621,212.7,212.58,0.81844801]
[1758596923748,72.9298,212.67,212.55,72.26]
[1758596924237,4.2288,212.63,212.55,72.26]
[1758596924839,4.2284,212.66,212.55,72.26]
[1758596925146,7.16,212.67,212.55,72.26]
[1758596925946,7.16,212.67,212.55,76.4904]
[1758596926341,4.2288,212.63,212.55,72.26]
[1758596927243,4.2283,212.66,212.55,72.26]
[1758596927947,4.2286,212.64,212.55,72.26]
[1758596928150,7.16,212.68,212.55,72.26]
[1758596928939,65.776,212.65,212.54,1.34292884]
[1758596929153,65.7823,212.63,212.54,1.34292884]
[1758596929453,4.2294,212.6,212.54,1.34292884]
[1758596929653,7.16,212.64,212.54,1.34292884]
[1758596930547,4.2289,212.63,212.54,1.34292884]
[1758596931550,7.16,212.64,212.54,5.57352884]
[1758596932753,11.3886,212.64,212.54,5.57352884]
[1758596933645,4.2291,212.62,212.54,1.34292884]
[1758596934440,7.16,212.61,212.54,1.34292884]
[1758596935754,11.3894,212.61,212.54,1.34292884]
[1758596935956,7.16,212.67,212.54,1.34292884]
[1758596936152,3.2097654,212.66,212.54,1.34292884]
[1758596936458,3.2097654,212.65,212.54,1.34292884]
[1758596936657,7.16,212.67,212.54,1.34292884]
[1758596936953,11.3882,212.67,212.57,4.2299]
[1758596937548,11.3882,212.67,212.54,1.34292884]
[1758596937755,7.16,212.67,212.54,1.34292884]
[1758596938353,11.3871,212.72,212.55,65.8059]
[1758596938555,3.21609832,212.71,212.59,4.2295]
[1758596938757,3.21609832,212.7,212.6,132.96]
[1758596938956,3.21609832,212.69,212.6,132.96]
[1758596939252,11.3871,212.72,212.6,132.96]
[1758596939452,11.3871,212.72,212.59,4.2295]
[1758596939453,4.2276,212.7,212.54,1.34292884]
[1758596939658,10.37825272,212.69,212.55,91.6062]
[1758596939854,7.16,212.67,212.55,25.8]
[1758596940253,3.21952543,212.66,212.55,25.8]
[1758596940459,4.2284,212.66,212.55,25.8]
[1758596940660,3.21921635,212.65,212.55,25.8]
[1758596940954,7.16,212.67,212.57,4.2298]
[1758596941259,3.21916133,212.66,212.57,4.2298]
[1758596941559,7.16,212.67,212.57,4.2298]
[1758596941759,7.72,212.62,212.54,1.34292884]
[1758596941955,3.21947656,212.61,212.54,1.34292884]
[1758596942154,65.807,212.55,212.35,65.8675]
[1758596942357,10.93857815,212.54,212.41,65.8493]
[1758596942558,7.72,212.54,212.42,65.8466]
[1758596942862,7.72,212.54,212.43,4.2327]
[1758596943254,7.72,212.54,212.43,137.1127]
[1758596943561,7.72,212.54,212.45,4.2323]
[1758596943756,7.72,212.54,212.43,132.88]
[1758596943948,11.9507,212.54,212.43,132.88]
[1758596944350,11.9507,212.54,212.42,4.2329]
[1758596944562,3.21859776,212.53,212.43,132.88]
[1758596944761,11.9507,212.54,212.43,132.88]
[1758596944961,3.21859776,212.53,212.43,132.88]
[1758596945163,11.9507,212.54,212.43,132.88]
[1758596945853,7.72,212.54,212.43,132.88]
[1758596947563,7.72,212.54,212.44,4.2326]
[1758596948160,4.2298,212.58,212.46,4.232]
[1758596948356,3.21826976,212.57,212.46,4.232]
[1758596948664,7.72,212.59,212.47,65.8297]
[1758596948859,3.21931644,212.58,212.5,4.2312]
[1758596949060,7.72,212.59,212.5,4.2312]
[1758596949753,11.9496,212.59,212.5,4.2312]
[1758596950063,11.9496,212.59,212.47,4.2318]
[1758596952863,4.2291,212.62,212.48,65.8279]
[1758596953464,4.2291,212.62,212.48,4.2316]
[1758596953862,4.2294,212.6,212.48,4.2316]
[1758596954263,4.2294,212.6,212.5,4.2313]
[1758596954856,4.2298,212.58,212.45,355.62]
[1758596955061,65.8007,212.57,212.46,132.74]
[1758596955267,65.8007,212.57,212.45,355.62]
[1758596955268,65.8129,212.53,212.45,355.62]
[1758596955469,73.5296,212.54,212.45,355.62]
[1758596955668,3.22264774,212.53,212.45,355.62]
[1758596955868,65.8156,212.52,212.45,355.62]
[1758596956367,7.27,212.51,212.45,355.62]
[1758596956767,7.27,212.51,212.3,355.62]
[1758596956768,65.8311,212.47,212.3,355.62]
[1758596956969,7.27,212.46,212.31,132.72]
[1758596957268,7.27,212.51,212.38,65.8589]
[1758596957463,7.27,212.51,212.42,4.2329]
[1758596958859,7.27,212.51,212.39,132.7]
[1758596958860,7.27,212.51,212.39,4.2334]
[1758596959063,7.27,212.51,212.43,132.7]
[1758596959661,7.27,212.57,212.43,132.7]
[1758596959966,65.8129,212.53,212.43,132.7]
[1758596960168,7.27,212.51,212.39,132.68]
[1758596960368,65.8256,212.49,212.39,132.68]
[1758596960569,5.92,212.48,212.39,132.68]
[1758596960769,10.1518,212.48,212.39,132.68]
[1758596961870,5.92,212.48,212.39,132.68]
[1758596962768,5.92,212.48,212.4,65.8523]
[1758596963073,5.92,212.48,212.39,198.5341]
[1758596963677,5.92,212.48,212.41,65.8494]
[1758596964670,5.92,212.48,212.39,198.5341]
[1758596964967,5.92,212.48,212.4,132.6]
[1758596965268,5.92,212.48,212.4,136.8333]
[1758596966077,4.232,212.47,212.4,132.6]
[1758596967176,4.2324,212.45,212.41,132.58]
[1758596967372,4.2324,212.45,212.42,132.58]
[1758596967571,4.2324,212.45,212.42,132.56]
[1758596968680,7.27,212.44,212.42,132.56]
[1758596968983,17.4218,212.48,212.42,132.56]
[1758596969182,13.19,212.48,212.42,132.56]
[1758596969780,5.10235744,212.48,212.43,65.8426]
[1758596970081,5.10235744,212.48,212.42,198.4061]
[1758596970285,5.10235744,212.48,212.43,65.8431]
[1758596970685,5.10235744,212.48,212.45,4.2323]
[1758596972482,7.9774529,212.62,212.47,65.8281]
[1758596972675,3.18967554,212.61,212.48,132.5]
[1758596972880,7.9774529,212.62,212.48,132.5]
[1758596973081,7.9774529,212.62,212.48,136.7316]
[1758596973082,3.18946183,212.61,212.48,136.7316]
[1758596973282,10.5299673,212.6,212.48,136.7316]
[1758596973482,108.54868187,212.67,212.51,65.8178]
[1758596973483,7.34,212.64,212.51,65.8178]
[1758596973684,7.34,212.64,212.54,4.2306]
[1758596973881,7.34,212.64,212.55,132.46]
[1758596974482,11.5686,212.64,212.55,132.46]
[1758596975579,4.229,212.62,212.56,132.44]
[1758596975783,7.34,212.64,212.56,132.44]
[1758596976080,68.97413519,212.63,212.56,132.42]
[1758596976281,10.53173519,212.62,212.56,132.42]
[1758596976482,7.34,212.6,212.56,132.42]
[1758596977086,4.229,212.62,212.56,132.42]
[1758596977594,11.5685,212.65,212.56,132.42]
[1758596978489,7.34,212.65,212.56,132.42]
[1758596978995,7.34,212.69,212.56,132.42]
[1758596979198,3.19308139,212.68,212.56,132.42]
[1758596979501,36.74975037,212.73,212.57,65.8001]
[1758596979692,3.19279975,212.72,212.61,69.5080806]
[1758596979893,36.74975037,212.73,212.63,65.7798]
[1758596980193,36.74975037,212.73,212.63,3.7212806]
[1758596980395,65.7327,212.79,212.63,3.7212806]
[1758596980690,7.34,212.78,212.64,132.32]
[1758596981091,4.2263,212.76,212.64,136.5484]
[1758596981994,4.2257,212.79,212.65,65.7729]
[1758596982197,65.7296,212.8,212.64,132.32]
[1758596982596,4.2261,212.77,212.66,4.228]
[1758596983699,65.7107,212.86,212.71,3.7212806]
[1758596983999,7.34,212.85,212.72,132.22]
[1758596984804,4.2247,212.84,212.72,136.4468]
[1758596985195,7.34,212.82,212.73,132.18]
[1758596985405,4.2259,212.78,212.64,4.2285]
[1758596985704,65.7384,212.77,212.65,132.16]
[1758596985904,4.2263,212.76,212.65,132.16]
[1758596986300,65.7391,212.77,212.66,132.16]
[1758596986700,4.2267,212.74,212.66,132.16]
[1758596987001,7.34,212.78,212.66,132.16]
[1758596987801,4.2265,212.75,212.66,132.16]
[1758596988204,7.34,212.78,212.66,132.16]
[1758596988799,7.34,212.84,212.68,65.7657]
[1758596989004,7.34,212.84,212.71,3.7212806]
[1758596989298,7.34,212.9,212.75,3.7212806]
[1758596989603,7.34,212.9,212.76,132.08]
[1758596989798,65.6833,212.95,212.79,3.7212806]
[1758596990000,65.6861,212.94,212.79,3.7212806]
[1758596990196,7.34,212.96,212.83,3.7212806]
[1758596990397,7.34,212.96,212.84,132.06]
[1758596991306,11.5623,212.96,212.84,132.06]
[1758596991706,4.2217,212.99,212.86,4.2241]
[1758596992006,7.34,212.99,212.84,132.06]
[1758596992211,4.2221,212.97,212.85,4.2244]
[1758596993604,7.34,212.99,212.87,4.2239]
[1758596994409,7.34,212.99,212.84,132.06]
[1758596995812,4.2221,212.97,212.85,4.2243]
[1758596996814,7.34,212.99,212.86,65.708]
[1758596997205,7.34,212.99,212.89,4.2235]
[1758596997405,7.34,213.02,212.89,4.2235]
[1758596997604,7.34,213.02,212.89,65.7]
[1758596998110,7.34,213.02,212.91,4.223]
[1758596998305,7.34,213.02,212.92,131.8]
[1758596998706,7.34,213.02,212.91,4.223]
[1758596998707,65.6558,213.04,212.91,3.7212806]
[1758596998906,7.34,213.0,212.92,60.66]
[1758596999417,4.2218,212.99,212.88,101.9]
[1758597000406,4.2221,212.97,212.88,101.9]
[1758597001408,7.34,213.0,212.88,101.9]
[1758597002512,7.34,213.0,212.83,69.4401806]
[1758597002717,7.34,213.0,212.84,131.68]
[1758597003417,7.11,212.96,212.8,65.7278]
[1758597003711,72.802,212.92,212.81,131.68]
[1758597003912,3.7212806,212.99,212.81,131.68]
[1758597004119,7.11,212.97,212.83,65.7194]
[1758597004315,7.11,212.97,212.82,4.2248]
[1758597004614,7.11,212.93,212.79,131.62]
[1758597006012,7.11,212.93,212.79,135.8455]
[1758597006211,65.692,212.92,212.76,355.44]
[1758597006415,11.3336,212.89,212.76,359.666]
[1758597006614,65.7111,212.86,212.76,355.44]
[1758597006824,65.7111,212.86,212.77,131.58]
[1758597007021,65.704,212.88,212.77,131.58]
[1758597007221,65.7075,212.87,212.77,131.58]
[1758597007411,10.8312806,212.89,212.77,131.58]
[1758597007617,4.2238,212.88,212.77,131.58]
[1758597009023,4.2243,212.86,212.77,131.58]
[1758597009618,7.11,212.89,212.77,131.58]
[1758597010424,65.7049,212.88,212.78,131.52]
[1758597010720,4.2245,212.85,212.78,131.52]
[1758597010911,7.11,212.86,212.78,131.52]
[1758597011513,65.7139,212.85,212.76,355.44]
[1758597011712,7.11,212.82,212.66,65.7709]
[1758597011915,7.11,212.82,212.64,420.857]
[1758597012117,7.11,212.82,212.67,131.48]
[1758597012917,11.3351,212.82,212.72,4.2269]
[1758597013115,11.3351,212.82,212.73,131.48]
[1758597013915,7.11,212.85,212.74,65.7459]
[1758597014118,3.7212806,212.91,212.74,65.7454]
[1758597014321,7.11,212.9,212.74,65.7454]
[1758597014924,7.11,212.9,212.78,4.2257]
[1758597015127,7.11,212.9,212.79,131.44]
[1758597015329,4.86131908,212.94,212.82,4.2248]
[1758597016322,4.86131908,212.94,212.79,131.44]
[1758597016624,4.2231,212.92,212.79,131.44]
[1758597017126,0.63861908,212.94,212.8,4.2254]
[1758597017327,0.63861908,212.94,212.8,65.7275]
[1758597017530,7.11,212.95,212.84,4.2245]
[1758597017819,7.11,212.95,212.8,65.7275]
[1758597017820,7.11,212.95,212.82,65.7219]
[1758597018026,7.11,212.95,212.83,65.7192]
[1758597018226,7.11,212.95,212.8,135.6054]
[1758597018829,4.2232,212.91,212.82,4.2249]
[1758597019220,7.11,212.95,212.82,65.7214]
[1758597019421,7.48,213.0,212.89,65.6984]
[1758597019626,7.48,213.0,212.9,131.34]
[1758597020927,7.48,212.97,212.88,131.32]
[1758597021124,7.48,212.97,212.88,131.3]
[1758597021328,7.48,212.93,212.81,131.3]
[1758597022927,11.7029,212.93,212.81,135.5251]
[1758597023527,7.48,212.93,212.83,4.2247]
[1758597023925,7.48,212.93,212.81,131.3]
[1758597024126,4.223,212.92,212.81,131.3]
[1758597024632,4.223,212.92,212.82,4.225]
[1758597024832,7.48,212.93,212.82,4.225]
[1758597025534,73.1704,212.93,212.81,131.3]
[1758597026530,7.48,212.92,212.81,4.2251]
[1758597026739,7.48,212.92,212.82,131.18]
[1758597028130,4.2232,212.91,212.82,131.18]
[1758597029239,7.48,212.92,212.82,131.18]
[1758597029438,7.48,212.97,212.82,131.18]
[1758597029632,73.1571,212.97,212.82,131.18]
[1758597030029,73.1571,212.97,212.84,4.2246]
[1758597031347,7.48,212.97,212.86,4.2241]
[1758597031941,11.7021,212.97,212.86,4.2241]
[1758597032550,11.551,213.03,212.88,65.7038]
[1758597032753,7.33,213.03,212.89,131.04]
[1758597032950,7.33,213.03,212.91,4.2231]
[1758597033851,4.2213,213.01,212.91,4.2231]
[1758597035740,4.2219,212.98,212.83,4.2247]
[1758597035949,4.2219,212.98,212.84,130.96]
[1758597036344,7.33,212.97,212.84,130.96]
[1758597037242,7.33,212.94,212.79,355.1]
[1758597037443,7.33,212.94,212.8,130.94]
[1758597037851,7.33,212.94,212.82,4.225]
[1758597038444,4.2228,212.93,212.82,4.225]
[1758597039958,4.2233,212.91,212.8,130.94]
[1758597042554,4.2233,212.91,212.81,4.2251]
[1758597044962,11.5527,212.94,212.81,4.2251]
[1758597045165,7.33,212.94,212.81,4.2251]
[1758597046863,4.2231,212.92,212.81,4.2251]
[1758597047063,4.2231,212.92,212.8,130.94]
[1758597048759,4.2231,212.92,212.8,135.1654]
[1758597049874,7.33,212.89,212.79,355.1]
[1758597050077,7.33,212.89,212.8,130.64]
[1758597050667,4.2242,212.86,212.8,130.64]
[1758597050870,7.33,212.89,212.8,130.64]
[1758597051873,4.224,212.87,212.8,130.64]
[1758597052271,7.33,212.89,212.8,130.64]
[1758597052968,65.6777,212.97,212.8,130.64]
[1758597053166,65.68,212.96,212.8,130.64]
[1758597053371,7.33,212.94,212.8,130.64]
[1758597053969,4.2232,212.91,212.8,134.8652]
[1758597054169,4.2232,212.91,212.8,130.64]
[1758597054474,11.5532,212.91,212.8,130.64]
[1758597055774,11.5532,212.91,212.81,4.225]
[1758597055978,7.33,212.9,212.8,130.64]
[1758597056280,3.19399877,212.89,212.8,130.64]
[1758597056576,7.33,212.9,212.8,130.64]
[1758597056778,4.224,212.87,212.8,130.64]
[1758597057178,7.33,212.89,212.8,130.64]
[1758597057476,3.19437939,212.88,212.8,130.64]
[1758597057681,7.33,212.89,212.8,130.64]
[1758597057869,68.90080791,212.88,212.8,130.64]
[1758597058071,10.52431106,212.87,212.8,130.64]
[1758597058271,7.33,212.87,212.8,130.64]
[1758597058469,7.33,212.85,212.8,130.64]
[1758597058775,73.0407,212.86,212.8,130.64]
[1758597058975,3.19553945,212.85,212.8,130.64]
[1758597059175,65.7107,212.86,212.8,130.64]
[1758597059378,7.33,212.83,212.8,130.64]
[1758597059778,7.33,212.83,212.73,4.2268]
[1758597059779,7.33,212.83,212.79,130.42]
[1758597060980,4.225,212.82,212.79,130.42]
[1758597061174,7.64,212.81,212.79,130.42]
[1758597062189,4.2254,212.8,212.79,130.42]
[1758597062385,11.8654,212.8,212.72,4.2269]
[1758597062692,11.8654,212.8,212.73,130.36]
[1758597063193,11.8654,212.8,212.67,355.08]
[1758597063194,7.64,212.77,212.67,130.34]
[1758597063983,14.18846904,212.8,212.67,196.1077]
[1758597064284,4.2254,212.8,212.68,4.2276]
[1758597065882,7.64,212.77,212.65,4.2282]
[1758597066078,7.64,212.77,212.66,130.28]
[1758597067388,7.64,212.77,212.66,134.5081]
[1758597067886,7.64,212.77,212.66,130.28]
[1758597068086,11.866,212.77,212.66,130.28]
[1758597068283,65.7385,212.77,212.6,65.7906]
[1758597068582,7.64,212.76,212.61,130.22]
[1758597069786,4.2264,212.75,212.63,4.2287]
[1758597070785,7.64,212.72,212.61,130.22]
[1758597070985,7.64,212.72,212.56,65.8017]
[1758597070986,7.64,212.72,212.62,130.18]
[1758597072185,4.2263,212.76,212.62,130.18]
[1758597072386,7.64,212.77,212.65,65.7743]
[1758597072685,7.64,212.77,212.62,130.18]
[1758597072892,7.64,212.77,212.64,4.2285]
[1758597073189,7.64,212.82,212.7,65.7602]
[1758597073390,7.64,212.88,212.71,195.897]
[1758597073690,3.17238349,212.87,212.71,130.14]
[1758597073889,7.64,212.88,212.71,130.14]
[1758597074383,7.64,212.88,212.74,4.2266]
[1758597074384,65.7085,212.87,212.74,4.2266]
[1758597074589,7.64,212.86,212.74,4.2266]
[1758597075286,4.2245,212.85,212.71,134.3671]
[1758597075591,7.64,212.84,212.7,130.1]
[1758597075788,7.19,212.84,212.7,130.1]
[1758597076384,65.7142,212.85,212.7,130.1]
[1758597076586,7.19,212.8,212.71,130.04]
[1758597077087,7.19,212.8,212.71,134.2672]
[1758597077286,7.19,212.8,212.71,130.04]
[1758597077486,65.734,212.79,212.71,130.04]
[1758597077690,7.19,212.76,212.65,130.02]
[1758597078286,11.4163,212.76,212.65,130.02]
[1758597078685,7.19,212.76,212.65,130.02]
[1758597078881,65.7486,212.74,212.65,130.02]
[1758597079087,7.19,212.72,212.65,130.02]
[1758597079791,4.2274,212.7,212.65,130.02]
[1758597080194,7.19,212.72,212.65,130.02]
[1758597080395,4.2269,212.73,212.65,130.02]
[1758597080793,11.4163,212.76,212.65,130.02]
[1758597080989,7.19,212.81,212.65,195.7942]
[1758597081196,7.19,212.81,212.66,65.7721]
[1758597081492,11.4154,212.81,212.7,4.2273]
[1758597081890,7.19,212.81,212.7,4.2273]
[1758597082089,7.19,212.81,212.66,65.7721]
[1758597082294,7.19,212.81,212.72,4.2269]
[1758597082488,7.19,212.81,212.72,134.1469]
[1758597083195,7.19,212.81,212.72,129.92]
[1758597083597,4.2254,212.8,212.72,129.92]
[1758597083799,7.19,212.81,212.68,4.2276]
[1758597084191,7.19,212.77,212.69,81.8]
[1758597084394,7.19,212.77,212.67,81.8]
[1758597084795,7.19,212.77,212.48,65.8276]
[1758597084796,65.7668,212.68,212.48,65.8276]
[1758597085003,71.65376579,212.72,212.49,135.73936579]
[1758597085295,4.2275,212.7,212.49,129.84]
[1758597085496,11.4175,212.7,212.5,5.89936579]
[1758597085696,7.57056541,212.83,212.55,5.89936579]
[1758597085697,7.19,212.75,212.55,5.89936579]
[1758597085995,7.19,212.75,212.56,129.82]
[1758597086188,4.2274,212.7,212.53,5.89936579]
[1758597086388,65.7495,212.74,212.53,5.89936579]
[1758597086389,7.19,212.71,212.53,5.89936579]
[1758597086597,7.19,212.71,212.54,113.88]
[1758597086896,7.19,212.71,212.57,4.2299]
[1758597087093,7.19,212.77,212.58,65.7962]